[Event "41st Jacques-Lemans-Open 2022"]
[Site "St. Veit/Glan"]
[Date "2022.07.10"]
[Round "2.23"]
[White "Hersel, Richard"]
[Black "Miazhynski, Yuri"]
[Result "0-1"]
[ECO "A02"]
[WhiteElo "1870"]
[BlackElo "2166"]
[Annotator "RC"]
[PlyCount "56"]
[EventDate "2022.07.09"]
[EventType "swiss"]
[EventCountry "AUT"]
[SourceTitle "playchess.com"]
[Source "ChessBase"]
[SourceQuality "1"]
[TimeControl "40/5400+30:1800+30"]

1. f4 {[%emt 0:00:04]} Nf6 {[%emt 0:01:52]} 2. Nf3 {[%emt 0:00:26]} g6 {[%emt 0:00:54]} 3. b3 {[%emt 0:01:42]} Bg7 {[%emt 0:00:42]} 4. Bb2 {[%emt 0:00:10]} O-O {[%emt 0:00:40]} 5. e3 {[%emt 0:00:40]} b6 {[%emt 0:01:26]} 6. Be2 {[%emt 0:02:59]} Bb7 {[%emt 0:01:17]} 7. O-O {[%emt 0:01:04]} d6 {[%emt 0:06:49]} 8. h3 {[%emt 0:17:59]} Nbd7 {[%emt 0:21:05]} 9. d3 {[%emt 0:13:08]} e5 {[%emt 0:04:28]} 10. fxe5 {[%emt 0:03:34]} Nd5 {[%emt 0:01:31]} 11. Bc1 {[%emt 0:07:09]} Nxe5 {[%emt 0:12:34]} 12. d4 {[%emt 0:04:31]} Nd7 {[%emt 0:04:21]} 13. c4 {[%emt 0:04:18]} N5f6 {[%emt 0:05:42]} 14. Nc3 {[%emt 0:02:18]} c5 {[%emt 0:04:22]} 15. Qd3 {[%emt 0:03:26]} Qe7 {[%emt 0:05:49]} 16. d5 {[%emt 0:09:39]} Rae8 {[%emt 0:04:57]} 17. Rb1 {[%emt 0:04:09]} Ne5 {[%emt 0:02:27]} 18. Qc2 {[%emt 0:04:46]} Nxf3+ {[%emt 0:02:27]} 19. Bxf3 {[%emt 0:00:17]} Nd7 {[%emt 0:00:14]} 20. e4 {[%emt 0:03:49]} Ne5 {[%emt 0:01:52]} 21. Be2 {[%emt 0:05:14]} Bc8 {[%emt 0:01:51]} 22. Bf4 {[%emt 0:01:53]} g5 {[%emt 0:05:47]} 23. Bg3 {[%emt 0:03:09]} g4 {[%emt 0:00:25]} 24. Bxg4 {[%emt 0:01:43]} Bxg4 {[%emt 0:00:51]} 25. hxg4 {[%emt 0:00:01]} Nxg4 {[%emt 0:00:34]} 26. Rf3 {[%emt 0:03:16]} Bd4+ {[%emt 0:01:20]} 27. Kh1 {[%emt 0:00:07]} Qg5 {[%emt 0:03:22]} 28. Bf4 {[%emt 0:01:13]} Qh4+ {[%emt 0:00:37]} 0-1

[Event "41st Jacques-Lemans-Open 2022"]
[Site "St. Veit/Glan"]
[Date "2022.07.10"]
[Round "2.24"]
[White "Merei, David"]
[Black "Sucher, Johannes"]
[Result "1/2-1/2"]
[ECO "B02"]
[WhiteElo "1839"]
[BlackElo "2164"]
[Annotator "RC"]
[PlyCount "68"]
[EventDate "2022.07.09"]
[EventType "swiss"]
[EventCountry "AUT"]
[SourceTitle "playchess.com"]
[Source "ChessBase"]
[SourceQuality "1"]
[TimeControl "40/5400+30:1800+30"]

1. e4 {[%emt 0:00:08]} Nf6 {[%emt 0:00:28]} 2. e5 {[%emt 0:00:05]} Ng8 {[%emt 0:00:08]} 3. d4 {[%emt 0:00:47]} d6 {[%emt 0:00:07]} 4. Nf3 {[%emt 0:00:28]} dxe5 {[%emt 0:02:03]} 5. Nxe5 {[%emt 0:00:55]} Nd7 {[%emt 0:03:02]} 6. Bf4 {[%emt 0:02:31]} Nxe5 {[%emt 0:01:12]} 7. Bxe5 {[%emt 0:00:29]} Nf6 {[%emt 0:02:15]} 8. Be2 {[%emt 0:06:07]} e6 {[%emt 0:03:52]} 9. O-O {[%emt 0:01:56]} Be7 {[%emt 0:00:50]} 10. c4 {[%emt 0:03:06]} O-O {[%emt 0:01:46]} 11. Nc3 {[%emt 0:02:15]} Nd7 {[%emt 0:06:13]} 12. Bg3 {[%emt 0:03:43]} f5 {[%emt 0:01:03]} 13. f4 {[%emt 0:09:35]} Bf6 {[%emt 0:08:02]} 14. Bf2 {[%emt 0:04:29]} Nb6 {[%emt 0:02:41]} 15. Qd3 {[%emt 0:09:26]} Qe7 {[%emt 0:03:46]} 16. Rad1 {[%emt 0:02:45]} Rd8 {[%emt 0:01:41]} 17. Qc2 {[%emt 0:03:15]} Bd7 {[%emt 0:02:34]} 18. Rfe1 {[%emt 0:04:01]} Qf7 {[%emt 0:03:18]} 19. b4 {[%emt 0:06:13]} a5 {[%emt 0:09:41]} 20. b5 {[%emt 0:01:57]} Rac8 {[%emt 0:03:06]} 21. Qb3 {[%emt 0:03:43]} Be8 {[%emt 0:05:50]} 22. Bf3 {[%emt 0:02:52]} Rb8 {[%emt 0:02:27]} 23. d5 {[%emt 0:07:46]} exd5 {[%emt 0:25:31]} 24. Nxd5 {[%emt 0:05:58]} Kh8 {[%emt 0:01:58]} 25. Nxb6 {[%emt 0:01:07]} cxb6 {[%emt 0:00:50]} 26. Bxb6 {[%emt 0:01:02]} Rxd1 {[%emt 0:00:50]} 27. Rxd1 {[%emt 0:00:55]} Ra8 {[%emt 0:01:23]} 28. Bd5 {[%emt 0:01:33]} Qe7 {[%emt 0:00:23]} 29. Qf3 {[%emt 0:04:55]} h6 {[%emt 0:01:51]} 30. Qe3 {[%emt 0:02:23]} Qd6 {[%emt 0:03:15]} 31. Bc5 {[%emt 0:01:50]} Qc7 {[%emt 0:00:32]} 32. Bb6 {[%emt 0:03:47]} Qd6 {[%emt 0:00:11]} 33. Bc5 {[%emt 0:01:19]} Qc7 {[%emt 0:00:11]} 34. Bb6 {[%emt 0:02:01]} Qd8 1/2-1/2

[Event "41st Jacques-Lemans-Open 2022"]
[Site "St. Veit/Glan"]
[Date "2022.07.10"]
[Round "2.25"]
[White "Besner, Bernhard"]
[Black "Ljubic, Luka"]
[Result "1-0"]
[ECO "B22"]
[WhiteElo "2164"]
[BlackElo "1768"]
[Annotator "RC"]
[PlyCount "105"]
[EventDate "2022.07.09"]
[EventType "swiss"]
[EventCountry "AUT"]
[SourceTitle "playchess.com"]
[Source "ChessBase"]
[SourceQuality "1"]
[TimeControl "40/5400+30:1800+30"]

1. e4 {[%emt 0:00:07]} c5 {[%emt 0:00:08]} 2. c3 {[%emt 0:00:05]} Nf6 {[%emt 0:00:19]} 3. e5 {[%emt 0:00:27]} Nd5 {[%emt 0:00:06]} 4. d4 {[%emt 0:00:17]} cxd4 {[%emt 0:00:23]} 5. Nf3 {[%emt 0:00:15]} Nc6 {[%emt 0:00:53]} 6. cxd4 {[%emt 0:00:10]} d6 {[%emt 0:00:10]} 7. Bc4 {[%emt 0:00:34]} Nb6 {[%emt 0:01:17]} 8. Bb5 {[%emt 0:01:02]} Bd7 {[%emt 0:00:24]} 9. Nc3 {[%emt 0:01:36]} dxe5 {[%emt 0:03:42]} 10. dxe5 {[%emt 0:01:23]} e6 {[%emt 0:01:05]} 11. O-O {[%emt 0:00:19]} Be7 {[%emt 0:02:24]} 12. Qe2 {[%emt 0:02:33]} Qc7 {[%emt 0:08:21]} 13. Rd1 {[%emt 0:03:14]} a6 {[%emt 0:03:45]} 14. Bd3 {[%emt 0:01:04]} Nb4 {[%emt 0:02:22]} 15. Be4 {[%emt 0:05:58]} Bc6 {[%emt 0:04:46]} 16. Bf4 {[%emt 0:01:15]} Bxe4 {[%emt 0:04:52]} 17. Nxe4 {[%emt 0:01:11]} N4d5 {[%emt 0:00:42]} 18. Bg5 {[%emt 0:08:38]} O-O {[%emt 0:03:08]} 19. Rac1 {[%emt 0:01:02]} Qd7 {[%emt 0:00:31]} 20. Be3 {[%emt 0:20:40]} Qb5 {[%emt 0:12:14]} 21. Qxb5 {[%emt 0:08:18]} axb5 {[%emt 0:00:13]} 22. Bxb6 {[%emt 0:00:32]} Nxb6 {[%emt 0:00:15]} 23. Rc7 {[%emt 0:03:02]} Rfd8 {[%emt 0:16:21]} 24. Rdc1 {[%emt 0:05:40]} Nd5 {[%emt 0:04:18]} 25. Rxb7 {[%emt 0:01:00]} b4 {[%emt 0:04:43]} 26. g3 {[%emt 0:07:06]} Rxa2 {[%emt 0:02:16]} 27. Nd4 {[%emt 0:01:18]} Bf8 {[%emt 0:07:36]} 28. Ng5 {[%emt 0:06:26]} Ne7 {[%emt 0:06:59]} 29. Ndxe6 {[%emt 0:03:58]} fxe6 {[%emt 0:00:29]} 30. Nxe6 {[%emt 0:00:12]} Re8 {[%emt 0:02:21]} 31. Nxf8 {[%emt 0:00:57]} Kxf8 {[%emt 0:00:47]} 32. Rxb4 {[%emt 0:01:50]} Nd5 {[%emt 0:03:21]} 33. Rb5 {[%emt 0:00:20]} Rxe5 {[%emt 0:01:46]} 34. Rd1 {[%emt 0:00:30]} Kf7 {[%emt 0:02:11]} 35. Rdxd5 {[%emt 0:03:05]} Rxd5 {[%emt 0:00:09]} 36. Rxd5 {[%emt 0:00:07]} Rxb2 {[%emt 0:00:03]} 37. Kg2 {[%emt 0:00:16]} Ra2 {[%emt 0:00:45]} 38. h4 {[%emt 0:00:07]} Rb2 {[%emt 0:00:17]} 39. h5 {[%emt 0:00:14]} Ra2 {[%emt 0:02:14]} 40. g4 {[%emt 0:00:32]} Rb2 {[%emt 0:01:03]} 41. g5 {[%emt 0:30:59]} Ke6 {[%emt 0:14:50]} 42. Ra5 {[%emt 0:00:00]} Rb7 {[%emt 0:01:55]} 43. Kg3 {[%emt 0:00:00]} Ke7 {[%emt 0:01:00]} 44. Kg4 {[%emt 0:00:00]} Ke6 {[%emt 0:00:27]} 45. Ra6+ {[%emt 0:00:00]} Ke7 {[%emt 0:00:09]} 46. f4 {[%emt 0:00:00]} Rc7 {[%emt 0:01:17]} 47. Ra8 {[%emt 0:00:00]} Kf7 {[%emt 0:00:55]} 48. Rh8 {[%emt 0:00:00]} Rc1 {[%emt 0:02:37]} 49. h6 {[%emt 0:00:00]} Rg1+ {[%emt 0:03:59]} 50. Kf5 {[%emt 0:00:00]} g6+ {[%emt 0:02:09]} 51. Ke4 {[%emt 0:00:00]} Re1+ {[%emt 0:01:29]} 52. Kf3 {[%emt 0:00:00]} Rf1+ {[%emt 0:03:34]} 53. Kg3 {[%emt 0:00:00]} 1-0

[Event "41st Jacques-Lemans-Open 2022"]
[Site "St. Veit/Glan"]
[Date "2022.07.10"]
[Round "2.26"]
[White "Hafner, Robert"]
[Black "Fahrner, Kurt"]
[Result "1/2-1/2"]
[ECO "A40"]
[WhiteElo "1933"]
[BlackElo "2331"]
[Annotator "RC"]
[PlyCount "98"]
[EventDate "2022.07.09"]
[EventType "swiss"]
[EventCountry "AUT"]
[SourceTitle "playchess.com"]
[Source "ChessBase"]
[SourceQuality "1"]
[TimeControl "40/5400+30:1800+30"]

1. d4 {[%emt 0:00:04]} g6 {[%emt 0:00:04]} 2. Nf3 {[%emt 0:00:04]} Bg7 {[%emt 0:00:07]} 3. e3 {[%emt 0:00:03]} Nf6 {[%emt 0:11:10]} 4. Be2 {[%emt 0:00:06]} O-O {[%emt 0:00:29]} 5. O-O {[%emt 0:00:04]} b6 {[%emt 0:01:07]} 6. b3 {[%emt 0:01:33]} c5 {[%emt 0:01:45]} 7. Bb2 {[%emt 0:00:09]} Bb7 {[%emt 0:00:32]} 8. c4 {[%emt 0:01:42]} cxd4 {[%emt 0:00:49]} 9. Nxd4 {[%emt 0:00:23]} Nc6 {[%emt 0:03:08]} 10. Nd2 {[%emt 0:08:25]} Rc8 {[%emt 0:10:05]} 11. Rc1 {[%emt 0:00:05]} Qc7 {[%emt 0:03:51]} 12. Qc2 {[%emt 0:03:06]} Rfd8 {[%emt 0:03:47]} 13. Rfd1 {[%emt 0:00:38]} Qb8 {[%emt 0:07:05]} 14. Qb1 {[%emt 0:00:04]} Ne5 {[%emt 0:00:43]} 15. N4f3 {[%emt 0:00:38]} Nxf3+ {[%emt 0:01:57]} 16. Bxf3 {[%emt 0:00:22]} d5 {[%emt 0:08:33]} 17. cxd5 {[%emt 0:23:17]} Rxc1 {[%emt 0:05:32]} 18. Qxc1 {[%emt 0:01:24]} Bxd5 {[%emt 0:03:10]} 19. Bxd5 {[%emt 0:11:03]} Rxd5 {[%emt 0:00:39]} 20. Nf3 {[%emt 0:08:06]} Qd6 {[%emt 0:11:38]} 21. Rxd5 {[%emt 0:00:27]} Nxd5 {[%emt 0:00:11]} 22. h3 {[%emt 0:05:16]} Bxb2 {[%emt 0:13:59]} 23. Qxb2 {[%emt 0:00:05]} Nb4 {[%emt 0:00:30]} 24. Qe2 {[%emt 0:04:54]} a5 {[%emt 0:03:49]} 25. a3 {[%emt 0:13:33]} Nd5 {[%emt 0:01:00]} 26. Qc4 {[%emt 0:01:58]} e6 {[%emt 0:01:37]} 27. a4 {[%emt 0:00:11]} Qb4 {[%emt 0:02:52]} 28. Qxb4 {[%emt 0:01:10]} Nxb4 {[%emt 0:00:07]} 29. Kf1 {[%emt 0:00:57]} Nd3 {[%emt 0:03:00]} 30. Nd2 {[%emt 0:02:35]} Nc5 {[%emt 0:00:17]} 31. Ke2 {[%emt 0:00:46]} Kf8 {[%emt 0:00:08]} 32. Kd1 {[%emt 0:00:56]} Ke7 {[%emt 0:00:03]} 33. Kc2 {[%emt 0:00:17]} Kd7 {[%emt 0:00:19]} 34. Nc4 {[%emt 0:02:07]} Kc7 {[%emt 0:00:04]} 35. f3 {[%emt 0:00:22]} f6 {[%emt 0:00:04]} 36. Na3 {[%emt 0:04:39]} Kc6 {[%emt 0:01:46]} 37. Kc3 {[%emt 0:02:10]} Nd7 {[%emt 0:02:10]} 38. Nc4 {[%emt 0:01:27]} Kc5 {[%emt 0:00:28]} 39. g3 {[%emt 0:02:11]} Ne5 {[%emt 0:00:53]} 40. Nd2 {[%emt 0:02:00]} f5 {[%emt 0:00:29]} 41. f4 {[%emt 0:00:43]} Nf7 {[%emt 0:03:28]} 42. Nc4 {[%emt 0:03:30]} g5 {[%emt 0:00:31]} 43. Kd3 {[%emt 0:02:03]} gxf4 {[%emt 0:08:51]} 44. exf4 {[%emt 0:00:52]} Nh8 {[%emt 0:00:15]} 45. Ne5 {[%emt 0:09:21]} Kb4 {[%emt 0:07:59]} 46. Kc2 {[%emt 0:00:35]} Ng6 {[%emt 0:01:28]} 47. Nd3+ {[%emt 0:06:36]} Ka3 {[%emt 0:00:09]} 48. Nb2 {[%emt 0:00:09]} Kb4 {[%emt 0:00:11]} 49. Nd3+ {[%emt 0:00:05]} Ka3 {[%emt 0:00:04]} 1/2-1/2

[Event "41st Jacques-Lemans-Open 2022"]
[Site "St. Veit/Glan"]
[Date "2022.07.10"]
[Round "2.27"]
[White "Caruso, Augusto"]
[Black "Huber, Mario"]
[Result "1-0"]
[ECO "C25"]
[WhiteElo "2132"]
[BlackElo "2125"]
[Annotator "RC"]
[PlyCount "99"]
[EventDate "2022.07.09"]
[EventType "swiss"]
[EventCountry "AUT"]
[SourceTitle "playchess.com"]
[Source "ChessBase"]
[SourceQuality "1"]
[TimeControl "40/5400+30:1800+30"]

1. e4 {[%emt 0:00:28]} e5 {[%emt 0:00:03]} 2. Nc3 {[%emt 0:00:16]} Nc6 {[%emt 0:00:51]} 3. f4 {[%emt 0:00:47]} d6 {[%emt 0:01:52]} 4. Bc4 {[%emt 0:02:03]} Nf6 {[%emt 0:00:38]} 5. d3 {[%emt 0:03:42]} Na5 {[%emt 0:04:09]} 6. Nf3 {[%emt 0:07:26]} Nxc4 {[%emt 0:00:57]} 7. dxc4 {[%emt 0:00:06]} exf4 {[%emt 0:05:36]} 8. Bxf4 {[%emt 0:02:11]} Be7 {[%emt 0:00:16]} 9. Qe2 {[%emt 0:02:24]} Bd7 {[%emt 0:05:56]} 10. O-O-O {[%emt 0:03:35]} O-O {[%emt 0:04:44]} 11. h3 {[%emt 0:04:34]} Re8 {[%emt 0:02:21]} 12. c5 {[%emt 0:15:17]} Nh5 {[%emt 0:03:01]} 13. Bh2 {[%emt 0:03:58]} Bg5+ {[%emt 0:05:23]} 14. Kb1 {[%emt 0:00:26]} Bf4 {[%emt 0:03:50]} 15. g4 {[%emt 0:04:53]} Bxh2 {[%emt 0:16:20]} 16. Qxh2 {[%emt 0:00:24]} Nf6 {[%emt 0:00:12]} 17. e5 {[%emt 0:02:05]} Bc6 {[%emt 0:01:13]} 18. Rhf1 {[%emt 0:05:20]} Bxf3 {[%emt 0:02:28]} 19. Rxf3 {[%emt 0:00:03]} Rxe5 {[%emt 0:01:12]} 20. cxd6 {[%emt 0:00:29]} cxd6 {[%emt 0:01:10]} 21. Rfd3 {[%emt 0:01:09]} Qe7 {[%emt 0:08:23]} 22. Rxd6 {[%emt 0:01:42]} Rc8 {[%emt 0:05:53]} 23. Qd2 {[%emt 0:00:51]} Re8 {[%emt 0:04:39]} 24. g5 {[%emt 0:05:49]} Ne4 {[%emt 0:03:16]} 25. Nxe4 {[%emt 0:00:08]} Rxe4 {[%emt 0:00:09]} 26. Rd7 {[%emt 0:00:17]} Qc5 {[%emt 0:07:51]} 27. a3 {[%emt 0:05:22]} g6 {[%emt 0:01:53]} 28. Rxb7 {[%emt 0:07:14]} Re2 {[%emt 0:01:38]} 29. Qd3 {[%emt 0:01:16]} Qxg5 {[%emt 0:03:39]} 30. Rxa7 {[%emt 0:00:50]} R8e3 {[%emt 0:01:42]} 31. Ra8+ {[%emt 0:06:23]} Kg7 {[%emt 0:00:30]} 32. Qd4+ {[%emt 0:00:26]} Kh6 {[%emt 0:01:45]} 33. Rg8 {[%emt 0:01:49]} f6 {[%emt 0:00:38]} 34. Qb4 {[%emt 0:03:49]} Re7 {[%emt 0:00:12]} 35. Rd4 {[%emt 0:02:46]} Kh5 {[%emt 0:00:56]} 36. Rgd8 {[%emt 0:01:34]} Kh6 {[%emt 0:00:48]} 37. Rh4+ {[%emt 0:02:51]} Kg7 {[%emt 0:00:09]} 38. Qc4 {[%emt 0:00:09]} R2e6 {[%emt 0:00:36]} 39. Ka2 {[%emt 0:01:57]} h5 {[%emt 0:01:04]} 40. Rhd4 {[%emt 0:01:24]} Qg2 {[%emt 0:00:24]} 41. Qc8 {[%emt 0:03:50]} Qc6 {[%emt 0:06:28]} 42. Rg8+ {[%emt 0:03:11]} Kh6 {[%emt 0:00:20]} 43. Qf8+ {[%emt 0:00:26]} Kg5 {[%emt 0:00:23]} 44. h4+ {[%emt 0:01:50]} Kf5 {[%emt 0:01:03]} 45. Qh6 {[%emt 0:00:39]} Re4 {[%emt 0:10:09]} 46. Qxg6+ {[%emt 0:01:09]} Ke5 {[%emt 0:02:04]} 47. Rd1 {[%emt 0:04:55]} Qxc2 {[%emt 0:05:16]} 48. Qxh5+ {[%emt 0:01:44]} f5 {[%emt 0:00:48]} 49. Qh8+ {[%emt 0:02:26]} Kf4 {[%emt 0:00:51]} 50. Qh6+ {[%emt 0:01:01]} 1-0

[Event "41st Jacques-Lemans-Open 2022"]
[Site "St. Veit/Glan"]
[Date "2022.07.10"]
[Round "2.28"]
[White "Hofbauer, Peter"]
[Black "Gschiel, Alexander"]
[Result "0-1"]
[ECO "B15"]
[WhiteElo "1986"]
[BlackElo "2215"]
[Annotator "RC"]
[PlyCount "82"]
[EventDate "2022.07.09"]
[EventType "swiss"]
[EventCountry "AUT"]
[SourceTitle "playchess.com"]
[Source "ChessBase"]
[SourceQuality "1"]
[TimeControl "40/5400+30:1800+30"]

1. e4 {[%emt 0:00:03]} c6 {[%emt 0:00:09]} 2. d4 {[%emt 0:00:14]} d5 {[%emt 0:00:14]} 3. Nc3 {[%emt 0:00:21]} dxe4 {[%emt 0:00:35]} 4. Nxe4 {[%emt 0:00:09]} Nf6 {[%emt 0:00:08]} 5. Nxf6+ {[%emt 0:00:50]} exf6 {[%emt 0:00:11]} 6. Nf3 {[%emt 0:00:47]} Bd6 {[%emt 0:00:57]} 7. Be2 {[%emt 0:03:16]} O-O {[%emt 0:01:54]} 8. O-O {[%emt 0:02:05]} Re8 {[%emt 0:01:32]} 9. b3 {[%emt 0:03:19]} Nd7 {[%emt 0:04:36]} 10. Bb2 {[%emt 0:01:33]} Nf8 {[%emt 0:00:48]} 11. Nd2 {[%emt 0:06:52]} Bc7 {[%emt 0:07:44]} 12. Bf3 {[%emt 0:03:05]} Ne6 {[%emt 0:06:04]} 13. Re1 {[%emt 0:02:06]} Ng5 {[%emt 0:06:13]} 14. Rxe8+ {[%emt 0:05:14]} Qxe8 {[%emt 0:00:13]} 15. Be2 {[%emt 0:03:24]} Qe7 {[%emt 0:06:41]} 16. Nf1 {[%emt 0:01:57]} Bf5 {[%emt 0:19:56]} 17. Bd3 {[%emt 0:01:17]} Qe6 {[%emt 0:04:35]} 18. Qd2 {[%emt 0:03:37]} Bg4 {[%emt 0:08:09]} 19. Re1 {[%emt 0:04:35]} Qd5 {[%emt 0:04:14]} 20. Qe3 {[%emt 0:08:03]} Ne6 {[%emt 0:04:38]} 21. h3 {[%emt 0:02:47]} Bh5 {[%emt 0:02:03]} 22. Ng3 {[%emt 0:13:17]} Bg6 {[%emt 0:03:39]} 23. Bxg6 {[%emt 0:02:20]} hxg6 {[%emt 0:00:05]} 24. c4 {[%emt 0:07:00]} Qa5 {[%emt 0:00:54]} 25. a4 {[%emt 0:00:58]} Rd8 {[%emt 0:03:57]} 26. Rb1 {[%emt 0:05:10]} Bf4 {[%emt 0:01:30]} 27. Qd3 {[%emt 0:04:26]} Qb6 {[%emt 0:05:33]} 28. Ne2 {[%emt 0:00:43]} Be5 {[%emt 0:00:18]} 29. a5 {[%emt 0:07:58]} Qxa5 {[%emt 0:01:28]} 30. Qe4 {[%emt 0:00:08]} Bc7 {[%emt 0:03:12]} 31. Qc2 {[%emt 0:01:35]} Qg5 {[%emt 0:00:41]} 32. b4 {[%emt 0:01:57]} f5 {[%emt 0:00:57]} 33. b5 {[%emt 0:01:44]} f4 {[%emt 0:00:34]} 34. f3 {[%emt 0:00:44]} cxb5 {[%emt 0:00:20]} 35. d5 {[%emt 0:00:39]} Nc5 {[%emt 0:01:57]} 36. Qc3 f6 37. cxb5 {[%emt 0:02:15]} Qxd5 {[%emt 0:00:35]} 38. Qc2 {[%emt 0:01:28]} Kh7 {[%emt 0:01:13]} 39. Bd4 {[%emt 0:01:10]} Bb6 {[%emt 0:00:33]} 40. Kf1 {[%emt 0:00:17]} Ne6 {[%emt 0:00:26]} 41. Bxb6 {[%emt 0:01:41]} axb6 {[%emt 0:00:04]} 0-1

[Event "41st Jacques-Lemans-Open 2022"]
[Site "St. Veit/Glan"]
[Date "2022.07.10"]
[Round "2.29"]
[White "Wiens, Helmut"]
[Black "Erber, Siegfried"]
[Result "0-1"]
[ECO "A05"]
[WhiteElo "2196"]
[BlackElo "1967"]
[Annotator "RC"]
[PlyCount "74"]
[EventDate "2022.07.09"]
[EventType "swiss"]
[EventCountry "AUT"]
[SourceTitle "playchess.com"]
[Source "ChessBase"]
[SourceQuality "1"]
[TimeControl "40/5400+30:1800+30"]

1. Nf3 {[%emt 0:00:06]} Nf6 {[%emt 0:00:15]} 2. e3 {[%emt 0:00:06]} e6 {[%emt 0:00:44]} 3. c4 {[%emt 0:00:14]} b6 {[%emt 0:00:30]} 4. Nc3 {[%emt 0:00:45]} c6 {[%emt 0:00:20]} 5. Qc2 {[%emt 0:02:00]} d5 {[%emt 0:03:26]} 6. b3 {[%emt 0:00:44]} Be7 {[%emt 0:03:38]} 7. g4 {[%emt 0:03:51]} h6 {[%emt 0:09:13]} 8. Bb2 {[%emt 0:03:35]} Bb7 {[%emt 0:01:18]} 9. Rg1 {[%emt 0:01:47]} Nbd7 {[%emt 0:01:16]} 10. Rc1 {[%emt 0:08:40]} Rc8 {[%emt 0:00:56]} 11. Ne2 {[%emt 0:10:21]} dxc4 {[%emt 0:02:32]} 12. bxc4 {[%emt 0:02:57]} c5 {[%emt 0:00:49]} 13. Bg2 {[%emt 0:08:38]} Qc7 {[%emt 0:02:56]} 14. Ng3 {[%emt 0:06:14]} Bd6 {[%emt 0:10:59]} 15. Nh4 {[%emt 0:19:52]} Bxg2 {[%emt 0:02:14]} 16. Nxg2 {[%emt 0:00:23]} Ne5 {[%emt 0:03:11]} 17. Bxe5 {[%emt 0:02:06]} Bxe5 {[%emt 0:00:03]} 18. f4 {[%emt 0:00:12]} Bd6 {[%emt 0:00:18]} 19. h3 {[%emt 0:01:31]} g5 {[%emt 0:00:29]} 20. Qc3 {[%emt 0:01:20]} Ke7 {[%emt 0:00:41]} 21. Rf1 {[%emt 0:00:25]} Qc6 {[%emt 0:02:21]} 22. Rf2 {[%emt 0:03:48]} Ne4 {[%emt 0:01:40]} 23. Nxe4 {[%emt 0:00:11]} Qxe4 {[%emt 0:00:24]} 24. Kf1 {[%emt 0:01:05]} h5 {[%emt 0:02:14]} 25. d3 {[%emt 0:04:45]} Qg6 {[%emt 0:01:49]} 26. Ke2 {[%emt 0:02:29]} hxg4 {[%emt 0:00:59]} 27. f5 {[%emt 0:01:53]} exf5 {[%emt 0:01:02]} 28. hxg4 {[%emt 0:00:16]} f4 {[%emt 0:01:32]} 29. exf4 {[%emt 0:01:21]} gxf4 {[%emt 0:03:36]} 30. Kd2 {[%emt 0:01:34]} Rh2 {[%emt 0:04:01]} 31. Re1+ {[%emt 0:08:09]} Kd7 {[%emt 0:00:49]} 32. Kc1 {[%emt 0:00:54]} f3 {[%emt 0:01:35]} 33. Rxf3 {[%emt 0:00:37]} Rxg2 {[%emt 0:00:29]} 34. Rf6 {[%emt 0:00:26]} Qg5+ {[%emt 0:03:52]} 35. Kb1 {[%emt 0:00:09]} Rf8 {[%emt 0:03:35]} 36. Ref1 {[%emt 0:02:26]} Be5 {[%emt 0:02:15]} 37. Qa3 {[%emt 0:00:15]} Rb2+ 0-1

[Event "41st Jacques-Lemans-Open 2022"]
[Site "St. Veit/Glan"]
[Date "2022.07.10"]
[Round "2.30"]
[White "Mitscherling, Andreas"]
[Black "Praxmarer, Christian"]
[Result "1-0"]
[ECO "A13"]
[WhiteElo "2165"]
[BlackElo "1906"]
[Annotator "RC"]
[PlyCount "49"]
[EventDate "2022.07.09"]
[EventType "swiss"]
[EventCountry "AUT"]
[SourceTitle "playchess.com"]
[Source "ChessBase"]
[SourceQuality "1"]
[TimeControl "40/5400+30:1800+30"]

1. c4 {[%emt 0:00:03]} e6 {[%emt 0:01:23]} 2. g3 {[%emt 0:00:36]} f5 {[%emt 0:00:48]} 3. Nc3 {[%emt 0:00:20]} Nf6 {[%emt 0:00:08]} 4. Bg2 {[%emt 0:00:19]} Bb4 {[%emt 0:07:06]} 5. Qb3 {[%emt 0:01:28]} Bxc3 {[%emt 0:00:10]} 6. Qxc3 {[%emt 0:00:09]} O-O {[%emt 0:00:21]} 7. Nf3 {[%emt 0:00:35]} d6 {[%emt 0:01:48]} 8. O-O {[%emt 0:02:11]} Nc6 {[%emt 0:03:58]} 9. d3 {[%emt 0:01:21]} Qe8 {[%emt 0:02:00]} 10. b4 {[%emt 0:01:55]} Qh5 {[%emt 0:07:59]} 11. b5 {[%emt 0:01:55]} Ne5 {[%emt 0:01:14]} 12. Nxe5 {[%emt 0:03:12]} dxe5 {[%emt 0:00:10]} 13. Re1 {[%emt 0:27:24]} e4 {[%emt 0:19:00]} 14. h3 {[%emt 0:07:42]} Rf7 {[%emt 0:08:15]} 15. dxe4 {[%emt 0:03:21]} Nxe4 {[%emt 0:02:04]} 16. Qe5 {[%emt 0:00:51]} Qg6 {[%emt 0:02:04]} 17. Bb2 {[%emt 0:02:22]} Bd7 {[%emt 0:05:13]} 18. Rad1 {[%emt 0:00:38]} Re8 {[%emt 0:01:13]} 19. Rd4 {[%emt 0:01:11]} c5 {[%emt 0:06:34]} 20. Rd3 {[%emt 0:02:50]} Bc8 {[%emt 0:02:24]} 21. Red1 {[%emt 0:03:07]} b6 {[%emt 0:03:00]} 22. Rd8 {[%emt 0:06:05]} Rff8 {[%emt 0:04:45]} 23. Qc7 {[%emt 0:00:50]} Qg5 {[%emt 0:02:11]} 24. h4 {[%emt 0:04:19]} Qe7 {[%emt 0:01:38]} 25. Rxc8 {[%emt 0:00:15]} 1-0